fUSD/lending_fUSD_20251211
["ID","MTS","AMOUNT","RATE_DAILY","PERIOD"]
[398191880,1765433431840,-1129.12060299,0.00017397,3]
[398191881,1765433431851,-2944.80058005,0.00017397,3]
[398191882,1765433431863,-926.07881696,0.00017397,3]
[398191883,1765433431872,-1241.26682324,0.00017418,2]
[398191884,1765433431883,-146.48441149,0.00017418,2]
[398191885,1765433431892,-300.0,0.00017445,2]
[398191886,1765433431902,-300.0,0.00017445,2]
[398191887,1765433431911,-300.0,0.00017445,2]
[398191888,1765433431920,-422.0,0.00017446,2]
[398191889,1765433431930,-1000.0,0.00017447,2]
[398191890,1765433431939,-150.77,0.00017447,2]
[398191891,1765433431948,-150.38,0.00017447,2]
[398191892,1765433431958,-150.28,0.00017447,2]
[398191893,1765433431967,-150.08,0.00017447,2]
[398191894,1765433431977,-152.94,0.00017447,2]
[398191895,1765433431986,-152.11,0.00017447,2]
[398191896,1765433431996,-151.43,0.00017447,2]
[398191897,1765433432005,-152.24,0.00017447,2]
[398191898,1765433432015,-1500.0,0.00017454,2]
[398191899,1765433432024,-2248.42611595,0.00017469,2]
[398191900,1765433432036,-881.22388405,0.00017469,2]
[398191901,1765433432046,-15376.86,0.00017476,2]
[398191902,1765433432055,-550.0,0.00017496,2]
[398191903,1765433432064,-744.99,0.00017497,2]
[398191904,1765433432074,-200.0,0.00017497,2]
[398191905,1765433432083,-200.0,0.00017497,2]
[398191906,1765433432093,-500.0,0.00017497,2]
[398191907,1765433432103,-500.0,0.00017497,2]
[398191908,1765433432113,-500.0,0.00017497,2]
[398191909,1765433432123,-500.0,0.00017497,2]
[398191910,1765433432132,-500.0,0.00017497,2]
[398191911,1765433432142,-151.0,0.00017497,2]
[398191912,1765433432152,-500.0,0.00017497,2]
[398191913,1765433432162,-151.0,0.00017497,2]
[398191914,1765433432172,-500.0,0.00017497,2]
[398191915,1765433432182,-151.0,0.00017497,2]
[398191916,1765433432192,-500.0,0.00017497,2]
[398191917,1765433432202,-151.0,0.00017497,2]
[398191918,1765433432211,-500.0,0.00017497,2]
[398191919,1765433432220,-151.0,0.00017497,2]
[398191920,1765433432230,-500.0,0.00017497,2]
[398191921,1765433432241,-500.0,0.00017497,2]
[398191922,1765433432250,-151.0,0.00017497,2]
[398191923,1765433432260,-500.0,0.00017497,2]
[398191924,1765433432270,-500.0,0.00017497,2]
[398191925,1765433432280,-151.0,0.00017497,2]
[398191926,1765433432291,-500.0,0.00017497,2]
[398191927,1765433432300,-151.0,0.00017497,2]
[398191928,1765433432312,-500.0,0.00017497,2]
[398191929,1765433432322,-151.0,0.00017497,2]
[398191930,1765433432334,-500.0,0.00017497,2]
[398191931,1765433432344,-151.0,0.00017497,2]
[398191932,1765433432357,-500.0,0.00017497,2]
[398191933,1765433432367,-151.0,0.00017497,2]
[398191934,1765433432376,-500.0,0.00017497,2]
[398191935,1765433432386,-151.0,0.00017497,2]
[398191936,1765433432395,-500.0,0.00017497,2]
[398191937,1765433432406,-151.0,0.00017497,2]
[398191938,1765433432415,-500.0,0.00017497,2]
[398191939,1765433432424,-231.76701204,0.00017497,2]
[398191940,1765433432434,-500.0,0.00017497,2]
[398191941,1765433432443,-500.0,0.00017497,2]
[398191942,1765433432452,-500.0,0.00017497,2]
[398191943,1765433432462,-200.0,0.00017497,2]
[398191944,1765433432471,-151.0,0.00017497,2]
[398191945,1765433432481,-151.0,0.00017497,2]
[398191946,1765433432491,-151.0,0.00017497,2]
[398191947,1765433432501,-151.0,0.00017497,2]
[398191948,1765433432511,-151.0,0.00017497,2]
[398191949,1765433432521,-151.0,0.00017497,2]
[398191950,1765433432531,-151.0,0.00017497,2]
[398191951,1765433432540,-151.0,0.00017497,2]
[398191952,1765433432549,-151.0,0.00017497,2]
[398191953,1765433432559,-151.0,0.00017497,2]
[398191954,1765433432569,-151.0,0.00017497,2]
[398191955,1765433432578,-192.33284578,0.00017497,2]
[398191956,1765433432597,-1000.0,0.000175,2]
[398191957,1765433432618,-250.0,0.00017508,2]
[398191958,1765433432639,-13634.77,0.00017508,2]
[398191959,1765433432658,-1188.48,0.00017518,2]
[398191960,1765433432673,-2083.74,0.00017571,2]
[398191961,1765433432682,-500.0,0.00017587,2]
[398191962,1765433432692,-10126.05082018,0.00017636,2]
[398191963,1765433432704,-433.69278607,0.00017636,2]
[398191964,1765433432720,-2782.08639375,0.00017636,2]
[398191965,1765433432729,-306.0,0.00017768,2]
[398191966,1765433432738,-744.99,0.00017771,2]
[398191967,1765433432747,-246.48587458,0.00017841,2]
[398191968,1765433432756,-535.99,0.00017872,2]
[398191969,1765433432766,-393.98137452,0.00017873,2]
[398191970,1765433432775,-500.3542425,0.00017873,2]
[398191971,1765433432785,-500.0,0.00017873,2]
[398191972,1765433432795,-533.54129631,0.00017873,2]
[398191973,1765433432803,-307.08770607,0.00017873,2]
[398191974,1765433432814,-500.0,0.00017873,2]
[398191975,1765433432823,-500.0,0.00017873,2]
[398191976,1765433432832,-504.51862347,0.00017873,2]
[398191977,1765433432841,-500.0,0.00017873,2]
[398191978,1765433432850,-500.0,0.00017873,2]
[398191979,1765433432860,-500.0,0.00017873,2]
[398191980,1765433432869,-500.0,0.00017873,2]
[398191981,1765433432878,-165.24526271,0.00017873,2]
[398191982,1765433432887,-500.0,0.00017873,2]
[398191983,1765433432896,-641.05531723,0.00017873,2]
[398191984,1765433432905,-503.26842576,0.00017873,2]
[398191985,1765433432914,-150.0,0.00017873,2]
[398191986,1765433432924,-150.0,0.00017873,2]
[398191987,1765433432933,-151.79703134,0.00017873,2]
[398191988,1765433432942,-150.0,0.00017873,2]
[398191989,1765433432952,-150.0,0.00017873,2]
[398191990,1765433432962,-160.04917082,0.00017873,2]
[398191991,1765433432971,-500.0,0.00017873,2]
[398191992,1765433432980,-150.0,0.00017873,2]
[398191993,1765433432989,-150.0,0.00017873,2]
[398191994,1765433432999,-150.0,0.00017873,2]
[398191995,1765433433009,-156.91068107,0.00017873,2]
[398191996,1765433433019,-209.988155,0.00017873,2]
[398191997,1765433433028,-150.0,0.00017873,2]
[398191998,1765433433038,-150.0,0.00017873,2]
[398191999,1765433433047,-287.35188046,0.00017973,2]
[398192000,1765433433057,-535.99,0.00017999,2]
[398192001,1765433433066,-535.99,0.00017999,2]
[398192002,1765433433075,-150.0,0.0001801,2]
[398192003,1765433433084,-150.0,0.0001801,2]
[398192004,1765433433093,-150.0,0.0001801,2]
[398192005,1765433433103,-150.0,0.0001801,2]
[398192006,1765433433112,-500.0,0.0001801,2]
[398192007,1765433433121,-150.0,0.0001801,2]
[398192008,1765433433131,-744.99,0.00018045,2]
[398192009,1765433433140,-200.0,0.00018045,2]
[398192010,1765433433149,-620.65318016,0.00018045,2]
[398192011,1765433433159,-200.0,0.00018045,2]
[398192012,1765433433169,-1188.48,0.00018049,2]
[398192013,1765433433179,-203.80834664,0.00018102,3]
[398192014,1765433433190,-150.0,0.00018102,3]
[398192015,1765433433199,-200.0,0.00018147,2]
[398192016,1765433433208,-200.0,0.00018147,2]
[398192017,1765433433219,-200.0,0.00018147,2]
[398192018,1765433433228,-200.0,0.00018147,2]
[398192019,1765433433238,-150.0,0.00018147,2]
[398192020,1765433433247,-200.0,0.00018147,2]
[398192021,1765433433257,-150.0,0.00018239,3]
[398192022,1765433433267,-744.99,0.00018319,2]
[398192023,1765433433276,-200.0,0.00018376,3]
[398192024,1765433433286,-164.24,0.00018385,2]
[398192025,1765433433296,-151.0,0.00018392,2]
[398192026,1765433433306,-151.0,0.00018392,2]
[398192027,1765433433321,-102793.42318056,0.00018395,2]
[398192028,1765433433342,-404.0,0.00018394,2]
[398192029,1765433437774,-96.0,0.00018394,2]
[398192030,1765433437784,-358.10888931,0.00018394,2]
[398192031,1765433437794,-174.62355801,0.00018394,2]
[398192032,1765433437832,-326.40468114,0.00018394,2]
[398192033,1765433437842,-500.0,0.00018394,2]
[398192034,1765433437852,-500.0,0.00018394,2]
[398192035,1765433437862,-500.0,0.00018394,2]
[398192036,1765433437871,-210.64063955,0.00018394,2]
[398192037,1765433437880,-657206.57681944,0.00018395,2]
[398192038,1765433437889,-1000.0,0.00018421,2]
[398192039,1765433437898,-979.86517479,0.00018421,2]
[398192040,1765433437907,-503.28665112,0.00018421,2]
[398192041,1765433437916,-191.15032062,0.00018421,2]
[398192042,1765433437925,-500.0,0.00018421,2]
[398192043,1765433437935,-501.81670451,0.00018421,2]
[398192044,1765433437945,-500.0,0.00018421,2]
[398192045,1765433437955,-150.0,0.00018495,2]
[398192046,1765433437964,-150.08427247,0.00018495,2]
[398192047,1765433437973,-150.0,0.00018495,2]
[398192048,1765433437983,-150.0,0.00018495,2]
[398192049,1765433437992,-268.22068745,0.00018495,2]
[398192050,1765433438002,-150.0,0.00018495,2]
[398192051,1765433438012,-150.0,0.00018495,2]
[398192052,1765433438021,-150.0,0.00018495,2]
[398192053,1765433438031,-1196.34974,0.0001851,2]
[398192054,1765433438040,-1196.34975,0.0001851,2]
[398192055,1765433438050,-1196.34975,0.0001851,2]
[398192056,1765433438060,-1196.34975,0.0001851,2]
[398192057,1765433438069,-1196.34974,0.0001853,2]
[398192058,1765433438080,-1196.34975,0.0001853,2]
[398192059,1765433438089,-166.66,0.00018537,2]
[398192060,1765433438099,-1188.48,0.0001858,2]
[398192061,1765433438108,-744.99,0.00018593,2]
[398192062,1765433438117,-299.69828506,0.00018593,2]
[398192063,1765433438126,-201.61297217,0.00018593,2]
[398192064,1765433438137,-784.0,0.00018598,2]
[398192065,1765433438149,-202.82161976,0.00018632,2]
[398192066,1765433438158,-150.0,0.00018632,2]
[398192067,1765433438168,-150.0,0.00018632,2]
[398192068,1765433438178,-214.51278261,0.00018632,2]
[398192069,1765433438188,-157.07600834,0.00018632,2]
[398192070,1765433438197,-300.0,0.00018728,2]
[398192071,1765433438207,-195.0,0.00018728,2]
[398192072,1765433438216,-250.0,0.00018728,2]
[398192073,1765433438225,-194.03931288,0.00018728,2]
[398192074,1765433438236,-195.0,0.00018728,2]
[398192075,1765433438245,-300.0,0.00018728,2]
[398192076,1765433438255,-744.99,0.00018867,2]
[398192077,1765433438264,-166.66,0.00018927,2]
[398192078,1765433438274,-300.0,0.00019,2]
[398192079,1765433438284,-420.0,0.00019045,2]
[398192080,1765433438293,-420.0,0.00019045,2]
[398192081,1765433438302,-250.0,0.00019082,2]
[398192082,1765433438311,-5000.0,0.00019082,3]
[398192083,1765433438321,-193.0,0.00019082,2]
[398192084,1765433438330,-195.0,0.00019082,2]
[398192085,1765433438340,-200.17345735,0.00019082,2]
[398192086,1765433438349,-1680.0,0.00019086,2]
[398192087,1765433438359,-1188.48,0.00019111,2]
[398192088,1765433438368,-744.99,0.00019141,2]
[398192089,1765433438377,-344.0,0.00019191,2]
[398192090,1765433438387,-166.66,0.00019317,2]
[398192091,1765433438397,-745.06290546,0.00019415,2]
[398192092,1765433438407,-4093.9163,0.00019427,2]
[398192093,1765433438416,-88680.2422,0.00019427,2]
[398192094,1765433438426,-10160.30464238,0.00019483,2]
[398192095,1765433438435,-3451.09,0.00019527,2]
[398192096,1765433438444,-415.23775483,0.00019581,2]
[398192097,1765433438453,-502.06697146,0.00019581,2]
[398192098,1765433438463,-151.0,0.00019581,2]
[398192099,1765433438473,-500.0,0.00019584,2]
[398192100,1765433438482,-302.0,0.00019584,2]
[398192101,1765433438491,-127497.86,0.00019584,2]
[398192102,1765433438501,-6983.98,0.00019585,2]
[398192103,1765433438511,-1000.0,0.00019627,2]
[398192104,1765433438521,-1188.48,0.00019641,2]
[398192105,1765433438531,-166.66,0.00019707,2]
[398192106,1765433438540,-853.1073308,0.00019837,2]
[398192107,1765433438550,-322.6107,0.00019992,2]
[398192108,1765433438560,-151.0,0.00019992,2]
[398192109,1765433438570,-245.08391874,0.00019992,2]
[398192110,1765433438580,-574.12855637,0.00019992,2]
[398192111,1765433438589,-152.97245009,0.00019992,2]
[398192112,1765433438599,-578.20924308,0.00019992,2]
[398192113,1765433438609,-734.0124348,0.00019992,2]
[398192114,1765433438619,-254.86439943,0.00019992,2]
[398192115,1765433438628,-1000.0,0.00019992,2]
[398192116,1765433438637,-577.17896346,0.00019992,2]
[398192117,1765433438647,-1000.0,0.00019992,2]
[398192118,1765433438660,-1000.0,0.00019992,2]
[398192119,1765433438670,-1000.0,0.00019992,2]
[398192120,1765433438680,-634.61922215,0.00019992,2]
[398192121,1765433438691,-151.0,0.00019992,2]
[398192122,1765433438701,-500.0,0.00019992,2]
[398192123,1765433438711,-500.0,0.00019992,2]
[398192124,1765433438720,-500.0,0.00019992,2]
[398192125,1765433438731,-500.0,0.00019992,2]
[398192126,1765433438740,-500.0,0.00019992,2]
[398192127,1765433438750,-1000.0,0.00019992,2]
[398192128,1765433438758,-500.0,0.00019992,2]
[398192129,1765433438768,-510.98844166,0.00019992,2]
[398192130,1765433438777,-1073.74643607,0.00019992,2]
[398192131,1765433438787,-250.0,0.00019992,2]
[398192132,1765433438796,-500.0,0.00019992,2]
[398192133,1765433438805,-260.03343447,0.00019992,2]
[398192134,1765433438814,-500.0,0.00019992,2]
[398192135,1765433438823,-500.0,0.00019992,2]
[398192136,1765433438832,-500.0,0.00019992,2]
[398192137,1765433438842,-500.0,0.00019992,2]
[398192138,1765433438851,-250.0,0.00019992,2]
[398192139,1765433438861,-500.0,0.00019992,2]
[398192140,1765433438871,-260.8975412,0.00019992,2]
[398192141,1765433438881,-1000.0,0.00019992,2]
[398192142,1765433438891,-1000.0,0.00019992,2]
[398192143,1765433438900,-1000.0,0.00019992,2]
[398192144,1765433438910,-622.24294831,0.00019992,2]
[398192145,1765433438920,-200.0,0.00019992,2]
[398192146,1765433438929,-207.4,0.00019992,2]
[398192147,1765433438939,-215.0738,0.00019992,2]
[398192148,1765433438949,-223.0315306,0.00019992,2]
[398192149,1765433438958,-231.28369723,0.00019992,2]
[398192150,1765433438968,-239.84119403,0.00019992,2]
[398192151,1765433438978,-248.71531821,0.00019992,2]
[398192152,1765433438987,-257.91778498,0.00019992,2]
[398192153,1765433438998,-267.46074303,0.00019992,2]
[398192154,1765433439008,-277.35679052,0.00019992,2]
[398192155,1765433439018,-300.0,0.00019992,2]
[398192156,1765433439028,-1599.0,0.00019992,2]
[398192157,1765433439038,-1599.0,0.00020047,2]
[398192158,1765433439048,-166.66,0.00020098,2]
[398192159,1765433439058,-1208.59187083,0.00020102,2]
[398192160,1765433439072,-390.40812917,0.00020102,2]
[398192161,1765433439082,-1217.14187083,0.00020157,2]
[398192162,1765433439916,-381.85812917,0.00020157,2]
[398192163,1765433439926,-1188.48,0.00020172,2]
[398192164,1765433439937,-220.67,0.00020187,2]
[398192165,1765433439946,-793.14137585,0.00020212,2]
[398192166,1765433439958,-805.85862415,0.00020212,2]
[398192167,1765433439968,-168.0,0.00020237,2]
[398192168,1765433439978,-887.68137585,0.00020267,2]
[398192169,1765433439989,-371.17450432,0.00020267,2]
[398192170,1765433440001,-340.14411983,0.00020267,2]
[398192171,1765433440010,-98.51102741,0.00020322,2]
[398192172,1765433440094,-1500.48897259,0.00020322,2]
[398192173,1765433440104,-1599.0,0.00020377,2]
[398192174,1765433440115,-168.0,0.0002043,2]
[398192175,1765433440125,-1599.0,0.00020432,2]
[398192176,1765433440135,-190.3539753,0.00020465,2]
[398192177,1765433440144,-166.66,0.00020488,2]
[398192178,1765433440154,-6261.8357667,0.00020494,2]
[398192179,1765433440164,-168.0,0.000205,2]
[398192180,1765433440173,-168.0,0.00020519,2]
[398192181,1765433440183,-334.5472959,0.0002054,2]
[398192182,1765433440192,-595.37131296,0.0002054,2]
[398192183,1765433440202,-192.7742419,0.0002054,2]
[398192184,1765433440211,-168.0,0.00020576,2]
[398192185,1765433440221,-168.0,0.00020629,2]
[398192186,1765433440231,-168.0,0.0002064,2]
[398192187,1765433440240,-168.0,0.00020705,2]
[398192188,1765433440249,-180.0,0.00020792,2]
[398192189,1765433440260,-168.0,0.00020905,2]
[398192190,1765433440269,-1595.0,0.00020941,2]
[398192191,1765433440279,-168.0,0.00020983,2]
[398192192,1765433440288,-478.89290564,0.00021088,2]
[398192193,1765433440298,-552.88579978,0.00021088,2]
[398192194,1765433440307,-7301.37384553,0.00021196,2]
[398192195,1765433440316,-1000.0,0.000212,2]
[398192196,1765433440325,-1000.0,0.000212,2]
[398192197,1765433440334,-500.0,0.00021288,2]
[398192198,1765433440343,-1397.2044174,0.00021296,2]
[398192199,1765433440352,-2000.0,0.000213,7]
[398192200,1765433440361,-2000.0,0.000213,7]
[398192201,1765433440371,-168.0,0.00021353,2]
[398192202,1765433440380,-168.0,0.00021355,2]
[398192203,1765433440390,-168.0,0.00021355,2]
[398192204,1765433440399,-151.0,0.00021361,2]
[398192205,1765433440409,-287.61899177,0.00021361,2]
[398192206,1765433440418,-300.0,0.00021361,2]
[398192207,1765433440428,-168.0,0.00021375,2]
[398192208,1765433440438,-480.8162296,0.00021397,2]
[398192209,1765433440448,-168.0,0.0002145,2]
[398192210,1765433440457,-163.0,0.00021479,2]
[398192211,1765433440467,-168.0,0.00021511,2]
[398192212,1765433440476,-168.0,0.00021735,2]
[398192213,1765433440489,-1000.0,0.00021808,2]
[398192214,1765433440498,-168.0,0.00021808,2]
[398192215,1765433440508,-10160.30464231,0.00021873,2]
[398192216,1765433440518,-5000.0,0.00021918,2]
[398192217,1765433440527,-168.0,0.0002196,2]
[398192218,1765433440537,-151.0,0.0002273,2]
[398192219,1765433440547,-298.26089446,0.0002273,2]
[398192220,1765433440557,-599.60298507,0.00022731,2]
[398192221,1765433440566,-535.99,0.00022774,2]
[398192222,1765433440576,-168.27,0.00023065,2]
[398192223,1765433440586,-7301.37384553,0.00023396,2]
[398192224,1765433440595,-1000.0,0.00023989,2]
[398192225,1765433440605,-1298.34367318,0.00024055,2]
[398192226,1765433440614,-309.29654756,0.00024099,2]
[398192227,1765433440623,-991.14171224,0.0002412,2]
[398192228,1765433440632,-6582.0,0.0002413,2]
[398192229,1765433440642,-10160.30464231,0.00024263,2]
[398192230,1765433440654,-1298.34367318,0.00024282,2]
[398192231,1765433440664,-2939.86,0.00024358,2]
[398192232,1765433440674,-3915.36778843,0.00024402,2]
[398192239,1765433440916,-219.76448304,0.00024464,2]
[398192240,1765433440927,-1298.34367319,0.00024491,2]
[398192241,1765433440937,-511.40574972,0.00024547,2]
[398192242,1765433440947,-285.20361441,0.00024547,2]
[398192243,1765433440956,-500.0,0.00024547,2]
[398192244,1765433440966,-160.16891587,0.00024547,2]
[398192245,1765433440975,-160.12861996,0.00024548,2]
[398192246,1765433440985,-176.25201587,0.00024548,2]
[398192247,1765433440995,-1072.74413854,0.00024565,2]
[398192248,1765433441004,-1072.74413852,0.00024632,2]
[398192249,1765433441013,-500.0,0.00024647,2]
[398192250,1765433441023,-233.71713313,0.00024647,2]
[398192251,1765433441033,-500.0,0.00024647,2]
[398192252,1765433441042,-500.0,0.00024647,2]
[398192253,1765433441052,-500.0,0.00024647,2]
[398192254,1765433441061,-1000.0,0.00024675,2]
[398192255,1765433441070,-223.64064302,0.00024699,2]
[398192256,1765433441079,-1072.74413852,0.00024699,2]
[398192257,1765433441089,-200.0,0.00024701,2]
[398192258,1765433441098,-500.0,0.00024747,2]
[398192259,1765433441108,-128547.2408883,0.00024748,2]
[398192260,1765433441117,-535.99,0.00024799,2]
[398192261,1765433441127,-151.0,0.00024897,7]
[398192262,1765433441136,-791.972,0.000249,8]
[398192263,1765433441145,-43467.2187118,0.000249,2]
[398192264,1765433441156,-500.0,0.00024999,2]
[398192265,1765433441165,-320.74051982,0.00025468,2]
[398192266,1765433441175,-563.77234159,0.0002547,2]
[398192267,1765433441185,-166.67,0.00025553,2]
[398192268,1765433441195,-7301.37384553,0.00025596,2]
[398192269,1765433441205,-500.0,0.00025726,2]
[398192270,1765433441214,-299.99,0.00025786,12]
[398192271,1765433441224,-1250.49,0.00025871,120]
[398192272,1765433441233,-500.0,0.00025945,2]
[398192273,1765433441243,-1000.0,0.000261,2]
[398192274,1765433441253,-1000.0,0.0002617,2]
[398192275,1765433441264,-171.12,0.00026214,2]
[398192276,1765433441273,-151.0,0.00026348,7]
[398192277,1765433441283,-151.0,0.00026348,2]
[398192278,1765433441294,-151.0,0.00026348,2]
[398192279,1765433441303,-151.0,0.00026348,7]
[398192280,1765433441313,-151.0,0.00026348,7]
[398192281,1765433441322,-151.0,0.00026348,2]
[398192282,1765433441332,-684.0,0.00026348,2]
[398192283,1765433441342,-160.683074,0.00026375,7]
[398192284,1765433441351,-151.0,0.00026375,7]
[398192285,1765433441361,-159.43807,0.00026375,7]
[398192286,1765433441370,-159.43807,0.00026375,7]
[398192287,1765433441380,-159.43807,0.00026375,7]
[398192288,1765433441390,-159.43807,0.00026375,7]
[398192289,1765433441399,-4764.0,0.00026431,2]
[398192290,1765433441408,-563.0,0.00026431,2]
[398192291,1765433441418,-328.929,0.00026431,2]
[398192292,1765433441428,-6518.0,0.00026431,2]
[398192293,1765433441438,-10160.30464231,0.00026654,2]
[398192294,1765433441447,-220.67,0.00026676,2]
[398192295,1765433441457,-332.60791905,0.00026837,2]
[398192296,1765433441466,-500.0,0.00027397,14]
[398192297,1765433441476,-151.0,0.00027397,7]
[398192298,1765433441485,-223.64064297,0.00027537,2]
[398192299,1765433441494,-2663.55454635,0.00027725,2]
[398192300,1765433441504,-10735.48,0.00027754,2]
[398192301,1765433441513,-171.12,0.00027756,2]
[398192302,1765433441524,-7301.37384553,0.00027796,2]
[398192303,1765433441534,-3454.63,0.00027886,60]
[398192304,1765433441543,-344.91441206,0.00028206,2]
[398192305,1765433441552,-612.362,0.00028791,2]
[398192306,1765433441562,-28682.766446,0.00028981,2]
[398192307,1765433441572,-10160.30464231,0.00029044,2]
[398192308,1765433441581,-684.0,0.00029348,2]
[398192309,1765433441591,-168.27,0.00029417,2]
[398192310,1765433441601,-4764.0,0.00029431,2]
[398192311,1765433441610,-563.0,0.00029431,2]
[398192312,1765433441620,-253.0,0.00029431,2]
[398192313,1765433441630,-778.67,0.00029492,30]
[398192314,1765433441640,-357.6762453,0.00029575,2]
[398192315,1765433441651,-6399.9902706,0.00029926,2]
[398192316,1765433441662,-7301.37384553,0.00029996,2]
[398192317,1765433441672,-151.0,0.00029996,7]
[398192318,1765433441682,-151.0,0.00029996,7]
[398192319,1765433441693,-151.0,0.00029996,7]
[398192320,1765433441702,-151.0,0.00029996,7]
[398192321,1765433441712,-151.0,0.00029996,7]
[398192322,1765433441721,-371.354658,0.00029996,7]
[398192323,1765433441732,-371.354658,0.00029996,7]
[398192324,1765433441742,-371.354658,0.00029996,7]
[398192325,1765433441752,-371.354658,0.00029996,7]
[398192326,1765433441762,-1000.0,0.000303,2]
[398192327,1765433441772,-223.64064297,0.00030375,2]
[398192328,1765433441782,-1108.93,0.000304,30]
[398192329,1765433441792,-500.0,0.00030721,60]
[398192330,1765433441801,-370.91026638,0.00030944,2]
[398192331,1765433441811,-151.0,0.00031042,31]
[398192332,1765433441821,-151.0,0.00031042,31]
[398192333,1765433441830,-2663.55454635,0.00031042,2]
[398192334,1765433441839,-499.999999,0.0003121,2]
[398192335,1765433441849,-500.0,0.00031233,2]
[398192336,1765433441859,-500.0,0.0003137,2]
[398192337,1765433441869,-10160.30464231,0.00031434,2]
[398192338,1765433441879,-1007.0,0.000315,2]
[398192339,1765433441889,-611.0,0.00031791,2]
[398192340,1765433441898,-7301.37384553,0.00032195,2]
[398192341,1765433441908,-384.63394623,0.00032313,2]
[398192342,1765433441918,-253.0,0.00032431,2]
[398192343,1765433441927,-200.0,0.00032733,2]
[398192344,1765433441937,-998.83295489,0.00032863,2]
[398192345,1765433441947,-500.0,0.00032876,60]
[398192346,1765433441956,-535.99,0.00032876,60]
[398192347,1765433441966,-151.0,0.00032877,31]
[398192348,1765433441976,-151.0,0.00032877,31]
[398192349,1765433441985,-151.0,0.00032877,31]
[398192350,1765433441994,-184.287211,0.00032877,31]
[398192351,1765433442004,-151.0,0.00032877,31]
[398192352,1765433442013,-151.0,0.00032877,31]
[398192353,1765433442022,-151.0,0.00032877,31]
[398192354,1765433442032,-151.0,0.00032877,31]
[398192355,1765433442041,-151.0,0.00032877,30]
[398192356,1765433442051,-151.0,0.00032877,31]
[398192357,1765433442060,-151.0,0.00032877,31]
[398192358,1765433442069,-151.0,0.00032877,31]
[398192359,1765433442079,-151.0,0.00032877,31]
[398192360,1765433442088,-151.0,0.00032877,31]
[398192361,1765433442098,-151.0,0.00032877,31]
[398192362,1765433442107,-158.615755,0.00032877,31]
[398192363,1765433442117,-151.0,0.00032877,31]
[398192364,1765433442126,-151.0,0.00032877,31]
[398192365,1765433442135,-151.0,0.00032877,31]
[398192366,1765433442144,-151.0,0.00032877,31]
[398192367,1765433442154,-151.0,0.00032877,31]
[398192368,1765433442163,-151.0,0.00032877,31]
[398192369,1765433442172,-151.0,0.00032877,31]
[398192370,1765433442181,-247.866726,0.00032877,31]
[398192371,1765433442191,-151.0,0.00032877,31]
[398192372,1765433442200,-151.0,0.00032877,31]
[398192373,1765433442209,-161.483556,0.00032877,31]
[398192374,1765433442218,-151.0,0.00032877,31]
[398192375,1765433442227,-151.0,0.00032877,31]
[398192376,1765433442236,-151.0,0.00032877,31]
[398192377,1765433442246,-151.0,0.00032877,31]
[398192378,1765433442256,-151.0,0.00032877,31]
[398192379,1765433442265,-151.0,0.00032877,31]
[398192380,1765433442274,-151.0,0.00032877,31]
[398192381,1765433442284,-151.0,0.00032877,31]
[398192382,1765433442293,-151.0,0.00032877,31]
[398192383,1765433442302,-151.0,0.00032877,31]
[398192384,1765433442312,-151.0,0.00032877,31]
[398192385,1765433442321,-212.293825,0.00032877,31]